[Event "Titled Tuesday Blitz August 17 2021"]
[White "Yonal, Timur"]
[Black "Sliwicki, Damian"]
[WhiteFideId "44115725"]
[BlackFideId "1127128"]
[WhiteElo "1829"]
[BlackElo "2142"]
[Result "1-0"]
[Round "05"]
[TimeControl "180+1"]
[Date "2021.08.18"]
[WhiteClock "0:00:13"]
[BlackClock "0:00:09"]

1. e4 {[%clk 0:03:00]}  Nf6 {[%clk 0:02:52]} 2. e5 {[%clk 0:02:57]}  Nd5 {[%clk 0:02:52]} 3. d4 {[%clk 0:02:58]}  d6 {[%clk 0:02:52]} 4. c4 {[%clk 0:02:58]}  Nb6 {[%clk 0:02:52]} 5. exd6 {[%clk 0:02:59]}  exd6 {[%clk 0:02:53]} 6. Nc3 {[%clk 0:02:58]}  Be7 {[%clk 0:02:53]} 7. Nf3 {[%clk 0:02:57]}  O-O {[%clk 0:02:53]} 8. Be2 {[%clk 0:02:57]}  Re8 {[%clk 0:02:50]} 9. O-O {[%clk 0:02:56]}  Bf6 {[%clk 0:02:50]} 10. Be3 {[%clk 0:02:55]}  Bg4 {[%clk 0:02:48]} 11. Rc1 {[%clk 0:02:53]}  Nc6 {[%clk 0:02:44]} 12. b3 {[%clk 0:02:52]}  g6 {[%clk 0:02:36]} 13. h3 {[%clk 0:02:51]}  Bxf3 {[%clk 0:02:35]} 14. Bxf3 {[%clk 0:02:51]}  Bg7 {[%clk 0:02:18]} 15. Qd2 {[%clk 0:02:50]}  Qd7 {[%clk 0:02:01]} 16. d5 {[%clk 0:02:31]}  Ne5 {[%clk 0:01:58]} 17. Be2 {[%clk 0:02:18]}  f5 {[%clk 0:01:32]} 18. f4 {[%clk 0:02:14]}  Nf7 {[%clk 0:01:29]} 19. Bd4 {[%clk 0:02:11]}  Qe7 {[%clk 0:01:13]} 20. Bxg7 {[%clk 0:02:03]}  Kxg7 {[%clk 0:01:14]} 21. Rfe1 {[%clk 0:02:02]}  Qe3+ {[%clk 0:01:08]} 22. Qxe3 {[%clk 0:02:01]}  Rxe3 {[%clk 0:01:09]} 23. Bf1 {[%clk 0:02:00]}  Rae8 {[%clk 0:01:06]} 24. Kf2 {[%clk 0:01:59]}  Rxe1 {[%clk 0:01:02]} 25. Rxe1 {[%clk 0:01:58]}  Rxe1 {[%clk 0:01:02]} 26. Kxe1 {[%clk 0:01:58]}  Nd7 {[%clk 0:01:01]} 27. Nb5 {[%clk 0:01:55]}  c6 {[%clk 0:00:53]} 28. dxc6 {[%clk 0:01:45]}  bxc6 {[%clk 0:00:54]} 29. Nxa7 {[%clk 0:01:45]}  Nd8 {[%clk 0:00:44]} 30. b4 {[%clk 0:01:41]}  Kf6 {[%clk 0:00:44]} 31. b5 {[%clk 0:01:30]}  c5 {[%clk 0:00:42]} 32. a4 {[%clk 0:01:25]}  d5 {[%clk 0:00:31]} 33. cxd5 {[%clk 0:01:11]}  Nb6 {[%clk 0:00:31]} 34. a5 {[%clk 0:01:09]}  Nxd5 {[%clk 0:00:32]} 35. b6 {[%clk 0:01:07]}  Ke7 {[%clk 0:00:29]} 36. b7 {[%clk 0:01:06]}  Nxb7 {[%clk 0:00:27]} 37. a6 {[%clk 0:01:01]}  Na5 {[%clk 0:00:18]} 38. Nc8+ {[%clk 0:00:55]}  Kd8 {[%clk 0:00:18]} 39. a7 {[%clk 0:00:56]}  Nc7 {[%clk 0:00:15]} 40. Nb6 {[%clk 0:00:55]}  c4 {[%clk 0:00:12]} 41. a8=Q+ {[%clk 0:00:48]}  Nxa8 {[%clk 0:00:11]} 42. Nxa8 {[%clk 0:00:48]}  c3 {[%clk 0:00:12]} 43. Nb6 {[%clk 0:00:38]}  Nb3 {[%clk 0:00:08]} 44. Kd1 {[%clk 0:00:34]}  Kc7 {[%clk 0:00:07]} 45. Nd5+ {[%clk 0:00:32]}  Kd6 {[%clk 0:00:08]} 46. Nxc3 {[%clk 0:00:33]}  Kc5 {[%clk 0:00:07]} 47. Kc2 {[%clk 0:00:25]}  Na5 {[%clk 0:00:06]} 48. Kd3 {[%clk 0:00:24]}  Nc6 {[%clk 0:00:06]} 49. g3 {[%clk 0:00:22]}  Nb4+ {[%clk 0:00:06]} 50. Kd2 {[%clk 0:00:20]}  Kd4 {[%clk 0:00:06]} 51. Nb5+ {[%clk 0:00:19]}  Kc5 {[%clk 0:00:06]} 52. Nc7 {[%clk 0:00:18]}  Nc6 {[%clk 0:00:04]} 53. Ne6+ {[%clk 0:00:15]}  Kd5 {[%clk 0:00:03]} 54. Bg2+ {[%clk 0:00:12]}  Kxe6 {[%clk 0:00:03]} 55. Bxc6 {[%clk 0:00:12]}  Kf6 {[%clk 0:00:03]} 56. Bg2 {[%clk 0:00:12]}  g5 {[%clk 0:00:04]} 57. Kd3 {[%clk 0:00:12]}  gxf4 {[%clk 0:00:02]} 58. gxf4 {[%clk 0:00:12]}  Ke6 {[%clk 0:00:03]} 59. Kd4 {[%clk 0:00:13]}  Kd6 {[%clk 0:00:03]} 60. Bf3 {[%clk 0:00:12]}  h6 {[%clk 0:00:03]} 61. h4 {[%clk 0:00:12]}  Ke6 {[%clk 0:00:04]} 62. Kc5 {[%clk 0:00:12]}  Kf6 {[%clk 0:00:03]} 63. Kd6 {[%clk 0:00:13]}  Kg6 {[%clk 0:00:01]} 64. Ke6 {[%clk 0:00:11]}  h5 {[%clk 0:00:02]} 65. Ke5 {[%clk 0:00:11]}  Kh6 {[%clk 0:00:03]} 66. Kxf5 {[%clk 0:00:11]}  Kg7 {[%clk 0:00:04]} 67. Kg5 {[%clk 0:00:12]}  Kh8 {[%clk 0:00:05]} 68. f5 {[%clk 0:00:12]}  Kg8 {[%clk 0:00:06]} 69. Kf6 {[%clk 0:00:12]}  Kh8 {[%clk 0:00:07]} 70. Ke7 {[%clk 0:00:12]}  Kg8 {[%clk 0:00:08]} 71. f6 {[%clk 0:00:12]}  Kh8 {[%clk 0:00:08]} 72. f7 {[%clk 0:00:13]}  Kg7 {[%clk 0:00:09]} 73. f8=Q+ {[%clk 0:00:12]}  Kg6 {[%clk 0:00:09]} 74. Be4# {[%clk 0:00:13]} 1-0


[Site "https://www.chess.com"]

[Event "Titled Tuesday Blitz August 17 2021"]
[White "Zhigalko, Sergei"]
[Black "Gerzhoy, Leonid"]
[WhiteFideId "13502956"]
[BlackFideId "2806126"]
[WhiteElo "2662"]
[BlackElo "2549"]
[Result "1-0"]
[Round "05"]
[TimeControl "180+1"]
[Date "2021.08.17"]
[WhiteClock "0:00:04"]
[BlackClock "0:00:07"]

1. e4 {[%clk 0:03:00]}  d6 {[%clk 0:02:59]} 2. d4 {[%clk 0:03:00]}  Nf6 {[%clk 0:02:59]} 3. Nc3 {[%clk 0:03:00]}  e5 {[%clk 0:02:58]} 4. Nf3 {[%clk 0:03:00]}  Nc6 {[%clk 0:02:57]} 5. Bb5 {[%clk 0:02:59]}  Bd7 {[%clk 0:02:56]} 6. Bxc6 {[%clk 0:02:56]}  Bxc6 {[%clk 0:02:55]} 7. O-O {[%clk 0:02:57]}  exd4 {[%clk 0:02:39]} 8. Nxd4 {[%clk 0:02:57]}  Be7 {[%clk 0:02:39]} 9. Nf5 {[%clk 0:02:50]}  O-O {[%clk 0:02:38]} 10. Qf3 {[%clk 0:02:49]}  Nd7 {[%clk 0:02:16]} 11. Qg3 {[%clk 0:02:32]}  Bf6 {[%clk 0:02:15]} 12. Bh6 {[%clk 0:02:28]}  g6 {[%clk 0:02:15]} 13. Bxf8 {[%clk 0:02:20]}  Qxf8 {[%clk 0:02:14]} 14. Ne3 {[%clk 0:01:30]}  Bxc3 {[%clk 0:02:08]} 15. bxc3 {[%clk 0:01:30]}  Bxe4 {[%clk 0:02:08]} 16. Qf4 {[%clk 0:01:29]}  Bc6 {[%clk 0:02:03]} 17. Ng4 {[%clk 0:01:17]}  f5 {[%clk 0:01:48]} 18. Ne3 {[%clk 0:01:12]}  Re8 {[%clk 0:01:45]} 19. Qd4 {[%clk 0:01:06]}  a6 {[%clk 0:01:24]} 20. Nd5 {[%clk 0:00:45]}  Re4 {[%clk 0:01:17]} 21. Qd2 {[%clk 0:00:45]}  Ne5 {[%clk 0:01:04]} 22. f3 {[%clk 0:00:41]}  Nc4 {[%clk 0:00:55]} 23. Qd3 {[%clk 0:00:40]}  Ne5 {[%clk 0:00:54]} 24. Qd2 {[%clk 0:00:31]}  Nc4 {[%clk 0:00:52]} 25. Qf2 {[%clk 0:00:24]}  Re5 {[%clk 0:00:48]} 26. Nf4 {[%clk 0:00:23]}  g5 {[%clk 0:00:34]} 27. Nd3 {[%clk 0:00:21]}  Re3 {[%clk 0:00:32]} 28. f4 {[%clk 0:00:07]}  g4 {[%clk 0:00:25]} 29. Rae1 {[%clk 0:00:07]}  Qe7 {[%clk 0:00:24]} 30. Rxe3 {[%clk 0:00:03]}  Qxe3 {[%clk 0:00:24]} 31. Re1 {[%clk 0:00:03]}  Qxf2+ {[%clk 0:00:22]} 32. Kxf2 {[%clk 0:00:03]}  Be4 {[%clk 0:00:22]} 33. g3 {[%clk 0:00:02]}  c5 {[%clk 0:00:20]} 34. Ke2 {[%clk 0:00:01]}  b6 {[%clk 0:00:19]} 35. Rc1 {[%clk 0:00:01]}  d5 {[%clk 0:00:18]} 36. Ne5 {[%clk 0:00:01]}  Nxe5 {[%clk 0:00:18]} 37. fxe5 {[%clk 0:00:02]}  Kf7 {[%clk 0:00:17]} 38. Ke3 {[%clk 0:00:03]}  Ke6 {[%clk 0:00:18]} 39. Kf4 {[%clk 0:00:03]}  h6 {[%clk 0:00:18]} 40. a4 {[%clk 0:00:02]}  b5 {[%clk 0:00:17]} 41. axb5 {[%clk 0:00:03]}  axb5 {[%clk 0:00:17]} 42. Rb1 {[%clk 0:00:04]}  b4 {[%clk 0:00:14]} 43. cxb4 {[%clk 0:00:03]}  c4 {[%clk 0:00:14]} 44. b5 {[%clk 0:00:04]}  Bxc2 {[%clk 0:00:12]} 45. Ra1 {[%clk 0:00:03]}  d4 {[%clk 0:00:09]} 46. b6 {[%clk 0:00:03]}  Be4 {[%clk 0:00:08]} 47. Ra4 {[%clk 0:00:02]}  c3 {[%clk 0:00:08]} 48. Rxd4 {[%clk 0:00:02]}  c2 {[%clk 0:00:09]} 49. Rc4 {[%clk 0:00:02]}  Kd5 {[%clk 0:00:10]} 50. Rxc2 {[%clk 0:00:02]}  Bxc2 {[%clk 0:00:08]} 51. b7 {[%clk 0:00:02]}  Be4 {[%clk 0:00:09]} 52. b8=Q {[%clk 0:00:03]}  Ke6 {[%clk 0:00:07]} 53. Qd6+ {[%clk 0:00:04]} 1-0


[Site "https://www.chess.com"]

[Event "Titled Tuesday Blitz August 17 2021"]
[White "ARTHURMOTIVATOR"]
[Black "Tikhonov, Viacheslav"]
[BlackFideId "44196407"]
[WhiteElo "2350"]
[BlackElo "1773"]
[Result "0-1"]
[Round "06"]
[TimeControl "180+1"]
[Date "2021.08.18"]
[WhiteClock "0:00:05"]
[BlackClock "0:00:16"]

1. e4 {[%clk 0:02:59]}  c6 {[%clk 0:03:00]} 2. d4 {[%clk 0:02:59]}  d5 {[%clk 0:03:01]} 3. Nc3 {[%clk 0:02:59]}  dxe4 {[%clk 0:03:01]} 4. Nxe4 {[%clk 0:03:00]}  Nf6 {[%clk 0:03:02]} 5. Nxf6+ {[%clk 0:03:00]}  exf6 {[%clk 0:03:03]} 6. c3 {[%clk 0:02:59]}  Bf5 {[%clk 0:03:02]} 7. Ne2 {[%clk 0:02:52]}  Bd6 {[%clk 0:03:00]} 8. Ng3 {[%clk 0:02:51]}  Bg6 {[%clk 0:03:01]} 9. Bc4 {[%clk 0:02:29]}  O-O {[%clk 0:03:01]} 10. O-O {[%clk 0:02:29]}  Nd7 {[%clk 0:03:00]} 11. f4 {[%clk 0:02:26]}  Nb6 {[%clk 0:03:00]} 12. Bb3 {[%clk 0:02:24]}  f5 {[%clk 0:03:00]} 13. c4 {[%clk 0:02:09]}  c5 {[%clk 0:02:32]} 14. d5 {[%clk 0:02:06]}  Re8 {[%clk 0:02:28]} 15. Qd3 {[%clk 0:02:02]}  Qf6 {[%clk 0:02:26]} 16. Bc2 {[%clk 0:01:53]}  Qd4+ {[%clk 0:02:12]} 17. Qxd4 {[%clk 0:01:41]}  cxd4 {[%clk 0:02:13]} 18. b3 {[%clk 0:01:41]}  Bc5 {[%clk 0:02:06]} 19. Bd3 {[%clk 0:01:27]}  Nc8 {[%clk 0:02:06]} 20. Bd2 {[%clk 0:01:22]}  a5 {[%clk 0:02:03]} 21. a3 {[%clk 0:01:19]}  Bf8 {[%clk 0:01:23]} 22. b4 {[%clk 0:01:02]}  Nd6 {[%clk 0:01:18]} 23. c5 {[%clk 0:00:56]}  Ne4 {[%clk 0:01:17]} 24. Bxe4 {[%clk 0:00:56]}  fxe4 {[%clk 0:01:12]} 25. f5 {[%clk 0:00:56]}  e3 {[%clk 0:01:13]} 26. fxg6 {[%clk 0:00:54]}  hxg6 {[%clk 0:01:11]} 27. Bxe3 {[%clk 0:00:30]}  Rxe3 {[%clk 0:01:06]} 28. d6 {[%clk 0:00:31]}  Rb3 {[%clk 0:00:50]} 29. Rab1 {[%clk 0:00:21]}  Rxa3 {[%clk 0:00:47]} 30. b5 {[%clk 0:00:20]}  Rc3 {[%clk 0:00:44]} 31. Ne4 {[%clk 0:00:19]}  Rc4 {[%clk 0:00:37]} 32. c6 {[%clk 0:00:18]}  bxc6 {[%clk 0:00:28]} 33. bxc6 {[%clk 0:00:15]}  Rxc6 {[%clk 0:00:27]} 34. Rb7 {[%clk 0:00:15]}  f5 {[%clk 0:00:23]} 35. Ng5 {[%clk 0:00:08]}  Rxd6 {[%clk 0:00:22]} 36. g4 {[%clk 0:00:09]}  Rd5 {[%clk 0:00:18]} 37. gxf5 {[%clk 0:00:08]}  Rxf5 {[%clk 0:00:19]} 38. Ne6 {[%clk 0:00:07]}  Rxf1+ {[%clk 0:00:17]} 39. Kxf1 {[%clk 0:00:08]}  a4 {[%clk 0:00:16]} 40. Ke2 {[%clk 0:00:08]}  a3 {[%clk 0:00:16]} 41. Rb1 {[%clk 0:00:06]}  a2 {[%clk 0:00:17]} 42. Ra1 {[%clk 0:00:07]}  Bb4 {[%clk 0:00:16]} 43. Kd3 {[%clk 0:00:05]}  Bc3 {[%clk 0:00:16]} 0-1


[Site "https://www.chess.com"]

[Event "Titled Tuesday Blitz August 17 2021"]
[White "Atabayev, Maksat"]
[Black "Bychkov, Vladimir"]
[WhiteFideId "14001101"]
[BlackFideId "24151513"]
[WhiteElo "2457"]
[BlackElo "2308"]
[Result "1-0"]
[Round "06"]
[TimeControl "180+1"]
[Date "2021.08.17"]
[WhiteClock "0:00:52"]
[BlackClock "0:00:37"]

1. e4 {[%clk 0:03:00]}  c6 {[%clk 0:03:00]} 2. d4 {[%clk 0:02:59]}  d5 {[%clk 0:03:00]} 3. Nc3 {[%clk 0:02:59]}  dxe4 {[%clk 0:03:00]} 4. Nxe4 {[%clk 0:03:00]}  Nf6 {[%clk 0:03:01]} 5. Nxf6+ {[%clk 0:03:00]}  exf6 {[%clk 0:03:02]} 6. c3 {[%clk 0:03:00]}  Bd6 {[%clk 0:03:02]} 7. Bd3 {[%clk 0:03:01]}  Na6 {[%clk 0:03:03]} 8. Ne2 {[%clk 0:03:01]}  Nc7 {[%clk 0:03:04]} 9. O-O {[%clk 0:03:02]}  h5 {[%clk 0:03:02]} 10. Bf4 {[%clk 0:02:59]}  a5 {[%clk 0:03:00]} 11. Re1 {[%clk 0:02:56]}  Kf8 {[%clk 0:03:00]} 12. Qd2 {[%clk 0:02:47]}  h4 {[%clk 0:02:49]} 13. h3 {[%clk 0:02:40]}  g5 {[%clk 0:02:48]} 14. Bxd6+ {[%clk 0:02:39]}  Qxd6 {[%clk 0:02:49]} 15. c4 {[%clk 0:02:40]}  Kg7 {[%clk 0:02:42]} 16. Rac1 {[%clk 0:02:39]}  Bd7 {[%clk 0:02:32]} 17. d5 {[%clk 0:02:38]}  c5 {[%clk 0:02:18]} 18. Nc3 {[%clk 0:02:35]}  Ne8 {[%clk 0:02:00]} 19. Ne4 {[%clk 0:02:32]}  Qc7 {[%clk 0:02:00]} 20. Nxg5 {[%clk 0:02:30]}  fxg5 {[%clk 0:01:59]} 21. Qxg5+ {[%clk 0:02:31]}  Kf8 {[%clk 0:01:59]} 22. Qe7+ {[%clk 0:02:19]}  Kg8 {[%clk 0:01:59]} 23. Re5 {[%clk 0:02:07]}  Ng7 {[%clk 0:01:58]} 24. Rg5 {[%clk 0:02:02]}  Qd8 {[%clk 0:01:54]} 25. Qe3 {[%clk 0:02:00]}  Qf6 {[%clk 0:01:50]} 26. Re1 {[%clk 0:01:59]}  Rh6 {[%clk 0:01:38]} 27. b3 {[%clk 0:01:54]}  Kh8 {[%clk 0:01:37]} 28. Re5 {[%clk 0:01:51]}  Rg8 {[%clk 0:01:34]} 29. Re7 {[%clk 0:01:45]}  Bf5 {[%clk 0:01:31]} 30. Rxf7 {[%clk 0:01:38]}  Qg6 {[%clk 0:01:22]} 31. Bxf5 {[%clk 0:01:28]}  Nxf5 {[%clk 0:01:22]} 32. Qe5+ {[%clk 0:01:27]}  Rg7 {[%clk 0:01:10]} 33. Rf8+ {[%clk 0:01:20]}  Kh7 {[%clk 0:01:09]} 34. Qxf5 {[%clk 0:01:19]}  Qxf5 {[%clk 0:00:57]} 35. Rxf5 {[%clk 0:01:18]}  Rhg6 {[%clk 0:00:58]} 36. Rh5+ {[%clk 0:01:07]}  Kg8 {[%clk 0:00:56]} 37. Re8+ {[%clk 0:01:05]}  Kf7 {[%clk 0:00:56]} 38. Rhh8 {[%clk 0:01:03]}  Rxg2+ {[%clk 0:00:56]} 39. Kf1 {[%clk 0:01:04]}  Rh2 {[%clk 0:00:48]} 40. Rb8 {[%clk 0:01:02]}  Rgg2 {[%clk 0:00:47]} 41. Rxb7+ {[%clk 0:01:00]}  Kf6 {[%clk 0:00:46]} 42. Rf8+ {[%clk 0:00:56]}  Ke5 {[%clk 0:00:46]} 43. Re7+ {[%clk 0:00:55]}  Kd4 {[%clk 0:00:47]} 44. d6 {[%clk 0:00:54]}  Rg6 {[%clk 0:00:37]} 45. d7 {[%clk 0:00:52]} 1-0


[Site "https://www.chess.com"]

[Event "Titled Tuesday Blitz August 17 2021"]
[White "Atabayev, Saparmyrat"]
[Black "Makhnev, Denis"]
[WhiteFideId "14000571"]
[BlackFideId "13707647"]
[WhiteElo "2483"]
[BlackElo "2537"]
[Result "0-1"]
[Round "06"]
[TimeControl "180+1"]
[Date "2021.08.17"]
[WhiteClock "0:00:05"]
[BlackClock "0:00:55"]

1. e4 {[%clk 0:03:00]}  c6 {[%clk 0:03:00]} 2. d4 {[%clk 0:03:00]}  d5 {[%clk 0:03:01]} 3. Nc3 {[%clk 0:03:01]}  dxe4 {[%clk 0:03:01]} 4. Nxe4 {[%clk 0:03:02]}  Nf6 {[%clk 0:03:02]} 5. Nxf6+ {[%clk 0:03:02]}  exf6 {[%clk 0:03:03]} 6. Nf3 {[%clk 0:03:01]}  Bd6 {[%clk 0:03:03]} 7. Bd3 {[%clk 0:03:02]}  O-O {[%clk 0:03:03]} 8. O-O {[%clk 0:03:02]}  Bg4 {[%clk 0:03:04]} 9. h3 {[%clk 0:03:01]}  Bh5 {[%clk 0:03:04]} 10. Be4 {[%clk 0:03:01]}  Nd7 {[%clk 0:02:57]} 11. Qd3 {[%clk 0:03:01]}  Bg6 {[%clk 0:02:58]} 12. Bxg6 {[%clk 0:03:01]}  hxg6 {[%clk 0:02:58]} 13. Re1 {[%clk 0:03:02]}  Qc7 {[%clk 0:02:56]} 14. c4 {[%clk 0:02:59]}  c5 {[%clk 0:02:56]} 15. d5 {[%clk 0:02:56]}  Rfe8 {[%clk 0:02:55]} 16. Bd2 {[%clk 0:02:55]}  a6 {[%clk 0:02:52]} 17. a4 {[%clk 0:02:46]}  Ne5 {[%clk 0:02:51]} 18. Qb3 {[%clk 0:02:37]}  Re7 {[%clk 0:02:43]} 19. Re2 {[%clk 0:02:36]}  Rae8 {[%clk 0:02:20]} 20. Rae1 {[%clk 0:02:34]}  Qd7 {[%clk 0:02:20]} 21. Nxe5 {[%clk 0:02:29]}  fxe5 {[%clk 0:02:19]} 22. Qc2 {[%clk 0:02:21]}  f5 {[%clk 0:02:00]} 23. Bg5 {[%clk 0:02:19]}  Rf7 {[%clk 0:01:59]} 24. f3 {[%clk 0:02:19]}  Bc7 {[%clk 0:01:52]} 25. b3 {[%clk 0:02:01]}  Qd6 {[%clk 0:01:51]} 26. Bf4 {[%clk 0:01:53]}  Rfe7 {[%clk 0:01:41]} 27. Bg3 {[%clk 0:01:42]}  Qf6 {[%clk 0:01:40]} 28. Bf2 {[%clk 0:01:27]}  b6 {[%clk 0:01:25]} 29. a5 {[%clk 0:01:25]}  e4 {[%clk 0:01:08]} 30. fxe4 {[%clk 0:01:25]}  Qe5 {[%clk 0:01:08]} 31. Kf1 {[%clk 0:00:57]}  Qh2 {[%clk 0:00:56]} 32. Bg1 {[%clk 0:00:26]}  Qh1 {[%clk 0:00:56]} 33. exf5 {[%clk 0:00:06]}  Bh2 {[%clk 0:00:56]} 34. Kf2 {[%clk 0:00:06]}  Rxe2+ {[%clk 0:00:55]} 35. Rxe2 {[%clk 0:00:05]}  Qxg1+ {[%clk 0:00:55]} 36. Kf3 {[%clk 0:00:05]} 0-1


[Site "https://www.chess.com"]

[Event "Titled Tuesday Blitz August 17 2021"]
[White "Awatramani, Janak"]
[Black "Khanin, Semen"]
[WhiteFideId "2608359"]
[BlackFideId "4111990"]
[WhiteElo "2918"]
[BlackElo "2521"]
[Result "1-0"]
[Round "06"]
[TimeControl "180+1"]
[Date "2021.08.17"]
[WhiteClock "0:00:12"]
[BlackClock "0:00:06"]

1. b3 {[%clk 0:03:00]}  b6 {[%clk 0:02:56]} 2. Bb2 {[%clk 0:03:01]}  Bb7 {[%clk 0:02:57]} 3. Nf3 {[%clk 0:03:01]}  Nf6 {[%clk 0:02:57]} 4. e3 {[%clk 0:03:01]}  g6 {[%clk 0:02:56]} 5. d4 {[%clk 0:03:02]}  Bg7 {[%clk 0:02:56]} 6. Nbd2 {[%clk 0:03:03]}  e6 {[%clk 0:02:56]} 7. c4 {[%clk 0:03:03]}  O-O {[%clk 0:02:54]} 8. Be2 {[%clk 0:03:04]}  c5 {[%clk 0:02:53]} 9. O-O {[%clk 0:03:04]}  cxd4 {[%clk 0:02:53]} 10. exd4 {[%clk 0:03:04]}  d5 {[%clk 0:02:52]} 11. Rc1 {[%clk 0:03:05]}  dxc4 {[%clk 0:02:52]} 12. bxc4 {[%clk 0:03:05]}  Nc6 {[%clk 0:02:51]} 13. Qc2 {[%clk 0:03:01]}  Rc8 {[%clk 0:02:50]} 14. Rfd1 {[%clk 0:03:01]}  b5 {[%clk 0:02:40]} 15. Nb3 {[%clk 0:02:35]}  bxc4 {[%clk 0:02:35]} 16. Nc5 {[%clk 0:02:35]}  Ba8 {[%clk 0:02:24]} 17. Bxc4 {[%clk 0:02:32]}  Nb4 {[%clk 0:02:13]} 18. Qe2 {[%clk 0:02:18]}  Bd5 {[%clk 0:02:08]} 19. Ba3 {[%clk 0:01:45]}  Qa5 {[%clk 0:02:01]} 20. Qb2 {[%clk 0:01:34]}  Rb8 {[%clk 0:01:48]} 21. Nb3 {[%clk 0:01:31]}  Qb6 {[%clk 0:01:35]} 22. Ne5 {[%clk 0:01:26]}  Rfc8 {[%clk 0:01:25]} 23. Bxb4 {[%clk 0:01:17]}  Qxb4 {[%clk 0:00:37]} 24. Bxd5 {[%clk 0:01:16]}  Nxd5 {[%clk 0:00:27]} 25. Nc6 {[%clk 0:01:16]}  Rxc6 {[%clk 0:00:20]} 26. Rxc6 {[%clk 0:01:17]}  h5 {[%clk 0:00:20]} 27. g3 {[%clk 0:01:10]}  a5 {[%clk 0:00:20]} 28. Qc2 {[%clk 0:01:06]}  a4 {[%clk 0:00:19]} 29. Nc5 {[%clk 0:01:01]}  a3 {[%clk 0:00:18]} 30. Nd7 {[%clk 0:01:00]}  Rb7 {[%clk 0:00:15]} 31. Rc8+ {[%clk 0:01:00]}  Kh7 {[%clk 0:00:15]} 32. Ne5 {[%clk 0:00:51]}  Bxe5 {[%clk 0:00:15]} 33. dxe5 {[%clk 0:00:52]}  Qb2 {[%clk 0:00:15]} 34. Qc5 {[%clk 0:00:42]}  Qxe5 {[%clk 0:00:14]} 35. Qxa3 {[%clk 0:00:37]}  Rb2 {[%clk 0:00:13]} 36. Qf8 {[%clk 0:00:33]}  Qf6 {[%clk 0:00:11]} 37. Qg8+ {[%clk 0:00:32]}  Kh6 {[%clk 0:00:11]} 38. Qh8+ {[%clk 0:00:31]}  Qxh8 {[%clk 0:00:12]} 39. Rxh8+ {[%clk 0:00:32]}  Kg7 {[%clk 0:00:12]} 40. Ra8 {[%clk 0:00:33]}  Nc3 {[%clk 0:00:12]} 41. Ra1 {[%clk 0:00:31]}  Ne4 {[%clk 0:00:12]} 42. Rf1 {[%clk 0:00:28]}  Nd2 {[%clk 0:00:11]} 43. Rc1 {[%clk 0:00:16]}  Ne4 {[%clk 0:00:11]} 44. f3 {[%clk 0:00:15]}  Nd2 {[%clk 0:00:10]} 45. Rc3 {[%clk 0:00:16]}  e5 {[%clk 0:00:08]} 46. a4 {[%clk 0:00:15]}  e4 {[%clk 0:00:09]} 47. fxe4 {[%clk 0:00:16]}  Nxe4 {[%clk 0:00:09]} 48. Re3 {[%clk 0:00:16]}  Ng5 {[%clk 0:00:09]} 49. a5 {[%clk 0:00:14]}  Nh3+ {[%clk 0:00:09]} 50. Kf1 {[%clk 0:00:15]}  Rxh2 {[%clk 0:00:09]} 51. a6 {[%clk 0:00:15]}  Ra2 {[%clk 0:00:10]} 52. a7 {[%clk 0:00:15]}  Ng5 {[%clk 0:00:09]} 53. Re7 {[%clk 0:00:14]}  Ne6 {[%clk 0:00:09]} 54. Rc8 {[%clk 0:00:07]}  Kf6 {[%clk 0:00:08]} 55. Rxe6+ {[%clk 0:00:08]}  Kxe6 {[%clk 0:00:08]} 56. a8=Q {[%clk 0:00:09]}  Rxa8 {[%clk 0:00:08]} 57. Rxa8 {[%clk 0:00:10]}  Kf5 {[%clk 0:00:08]} 58. Kf2 {[%clk 0:00:11]}  g5 {[%clk 0:00:08]} 59. Kf3 {[%clk 0:00:12]}  Kg6 {[%clk 0:00:07]} 60. Ra6+ {[%clk 0:00:12]}  f6 {[%clk 0:00:08]} 61. Ke4 {[%clk 0:00:12]}  g4 {[%clk 0:00:06]} 62. Kf4 {[%clk 0:00:12]} 1-0


[Site "https://www.chess.com"]

[Event "Titled Tuesday Blitz August 17 2021"]
[White "Batsuren, Dambasuren"]
[Black "Oliveira, Silvio Eduardo"]
[WhiteFideId "4902920"]
[BlackFideId "2111560"]
[WhiteElo "2371"]
[BlackElo "2302"]
[Result "1-0"]
[Round "06"]
[TimeControl "180+1"]
[Date "2021.08.17"]
[WhiteClock "0:00:22"]
[BlackClock "0:00:02"]

1. c4 {[%clk 0:02:59]}  e6 {[%clk 0:02:59]} 2. Nc3 {[%clk 0:02:58]}  d5 {[%clk 0:03:00]} 3. e3 {[%clk 0:02:58]}  Nf6 {[%clk 0:02:59]} 4. Nf3 {[%clk 0:02:58]}  b6 {[%clk 0:02:58]} 5. b3 {[%clk 0:02:59]}  Bb7 {[%clk 0:02:58]} 6. Bb2 {[%clk 0:03:00]}  Bd6 {[%clk 0:02:57]} 7. Rg1 {[%clk 0:02:59]}  h5 {[%clk 0:02:50]} 8. Qc2 {[%clk 0:02:56]}  a6 {[%clk 0:02:50]} 9. cxd5 {[%clk 0:02:45]}  exd5 {[%clk 0:02:49]} 10. Nd4 {[%clk 0:02:46]}  g6 {[%clk 0:02:45]} 11. f4 {[%clk 0:02:46]}  Nbd7 {[%clk 0:02:43]} 12. Bd3 {[%clk 0:02:34]}  Qe7 {[%clk 0:02:40]} 13. O-O-O {[%clk 0:02:25]}  Nc5 {[%clk 0:02:29]} 14. Be2 {[%clk 0:02:25]}  b5 {[%clk 0:02:08]} 15. Bf3 {[%clk 0:01:57]}  O-O-O {[%clk 0:01:52]} 16. Kb1 {[%clk 0:01:51]}  Nce4 {[%clk 0:01:25]} 17. Nxe4 {[%clk 0:01:45]}  dxe4 {[%clk 0:01:22]} 18. Be2 {[%clk 0:01:45]}  c5 {[%clk 0:01:21]} 19. Bxb5 {[%clk 0:01:26]}  axb5 {[%clk 0:01:14]} 20. Nxb5 {[%clk 0:01:27]}  Ba6 {[%clk 0:01:05]} 21. a4 {[%clk 0:01:27]}  Rhe8 {[%clk 0:00:52]} 22. Rc1 {[%clk 0:01:23]}  Nd5 {[%clk 0:00:50]} 23. Nxd6+ {[%clk 0:01:19]}  Qxd6 {[%clk 0:00:50]} 24. Be5 {[%clk 0:01:11]}  Qb6 {[%clk 0:00:36]} 25. Qxc5+ {[%clk 0:01:10]}  Qxc5 {[%clk 0:00:36]} 26. Rxc5+ {[%clk 0:01:11]}  Kb7 {[%clk 0:00:36]} 27. Rgc1 {[%clk 0:01:10]}  Bd3+ {[%clk 0:00:35]} 28. Kb2 {[%clk 0:01:10]}  f6 {[%clk 0:00:34]} 29. Bd4 {[%clk 0:01:06]}  Rd7 {[%clk 0:00:33]} 30. g3 {[%clk 0:01:00]}  Re6 {[%clk 0:00:11]} 31. Ka3 {[%clk 0:00:59]}  Rb6 {[%clk 0:00:11]} 32. Rc8 {[%clk 0:00:43]}  Ne7 {[%clk 0:00:09]} 33. Rf8 {[%clk 0:00:36]}  Rxd4 {[%clk 0:00:08]} 34. exd4 {[%clk 0:00:36]}  Nf5 {[%clk 0:00:09]} 35. Rf7+ {[%clk 0:00:34]}  Kb8 {[%clk 0:00:03]} 36. Rd7 {[%clk 0:00:27]}  Ba6 {[%clk 0:00:03]} 37. b4 {[%clk 0:00:23]}  Bb7 {[%clk 0:00:02]} 38. b5 {[%clk 0:00:22]}  Rd6 {[%clk 0:00:02]} 39. Rxd6 {[%clk 0:00:20]}  Nxd6 {[%clk 0:00:03]} 40. Kb3 {[%clk 0:00:21]}  Bd5+ {[%clk 0:00:03]} 41. Kb4 {[%clk 0:00:21]}  Nf5 {[%clk 0:00:02]} 42. Kc5 {[%clk 0:00:21]}  Bb7 {[%clk 0:00:02]} 43. a5 {[%clk 0:00:21]}  e3 {[%clk 0:00:03]} 44. dxe3 {[%clk 0:00:22]}  Nxe3 {[%clk 0:00:04]} 45. a6 {[%clk 0:00:22]}  Bd5 {[%clk 0:00:02]} 1-0


[Site "https://www.chess.com"]